Cogmind - Beta 17 *** ADVENTURER MODE // 2026.06.29 @ 09:03:45 Player: Jefffff Result: Destroyed by F3-EQ0(R) with Subdweller Laser Performance ------------- Evolutions (0) 0 Regions Visited (2) 400 Robots Destroyed (25) 125 Value Destroyed (743) 743 Prototype IDs (0) 0 Alien Tech Used (0) 0 Bonus (0) 0 TOTAL SCORE: 1268 Bonus ------- None Cogmind --------- Core Integrity 0/250 Matter 274/300 Energy 200/200 System Corruption 0% Temperature Cool (6) Movement Rolling (95) Ox1 Location -10/Subcaves Parts ------- > --- POWER (1) -------- Subdweller Power Source > --- PROPULSION (2) --- Spiked Treads Wheel > --- UTILITY (2) ------ Medium Storage Unit Machine Analyzer > --- WEAPON (2) ------- Flail > --- INVENTORY (10) --- Makeshift Leg Transport Network Coupler Scrap Shield Scrap Shield Scrap Shield Fragment (48) Scrap Shield Fragment (47) Scrap Shield Fragment (42) Peak State ------------ > --- POWER ------------ Improved Ion Engine > --- PROPULSION ------- Spiked Treads Subdweller Monowheel > --- UTILITY ---------- Improved Heat Sink Medium Storage Unit > --- WEAPON ----------- Subdweller Beam Cannon Battle Rifle > --- INVENTORY -------- Machine Analyzer Transport Network Coupler Scrap Shield Flail [Rating: 15] Favorites ----------- Power Improved Ion Engine Engine Improved Ion Engine Propulsion Aluminum Leg Treads Spiked Treads Leg Aluminum Leg Wheel Subdweller Monowheel Utility Sensor Array Device Sensor Array Storage Medium Storage Unit Processor Signal Interpreter Weapon Subdweller Beam Cannon Energy Gun Particle Gun Energy Cannon Subdweller Beam Cannon Ballistic Gun Battle Rifle Impact Weapon Flail Build | -11 -10 -10 ------- Run | Yrd Mat Sub Slots Evolved . | . . . Power . | . . . Propulsion . | . . . Utility . | . . . Weapon . | . . . Parts Attached 37 | 7 13 17 Power 5 | 1 2 2 Engine 5 | 1 2 2 Core . | . . . Reactor . | . . . Propulsion 10 | 2 1 7 Treads 1 | . . 1 Leg 3 | 2 1 . Wheel 6 | . . 6 Hover . | . . . Flight . | . . . Utility 7 | 1 3 3 Device 2 | . 1 1 Storage 2 | 1 . 1 Processor 3 | . 2 1 Hackware . | . . . Protection . | . . . Artifact . | . . . Weapon 15 | 3 7 5 Energy Gun 3 | 2 1 . Energy Cannon 1 | . . 1 Ballistic Gun 10 | 1 5 4 Ballistic Cannon . | . . . Launcher . | . . . Special Weapon . | . . . Impact Weapon 1 | . 1 . Slashing Weapon . | . . . Piercing Weapon . | . . . Special Melee Weapon . | . . . Unidentified Prototypes . | . . . Parts Lost 6 | . . 6 Power 1 | . . 1 Propulsion 1 | . . 1 Utility 2 | . . 2 Weapon 2 | . . 2 Highest Loss Streak 2 | . . 2 To Critical Strikes . | . . . Average Backups 5 | 1 5 5 Power . | . . . Propulsion . | . . . Utility 3 | . 2 3 Weapon 1 | . 1 1 Tool/Special . | . . . Unused Backups 9 | . 3 6 Power . | . . . Propulsion 1 | . . 1 Utility 6 | . 3 3 Weapon 1 | . . 1 Tool/Special 1 | . . 1 Average Slot Usage (%) 99 | . 98 99 Engine 13 | . 14 13 Treads 6 | . . 8 Leg 11 | . 28 7 Wheel 9 | . . 12 Device 12 | . 8 13 Storage 3 | . 6 2 Processor 11 | . 11 11 Energy Gun 5 | . 6 5 Energy Cannon 6 | . . 7 Ballistic Gun 14 | . 16 14 Impact Weapon 1 | . 4 . Peak Build Rating 15 | 6 10 15 Average Rating 11 | 4 8 12 On Entrance 5 | . 6 10 Avg Prop Armor Cover (%) 13 | . . 13 Naked Turns . | . . . Heaviest Build 28 | 10 12 28 Greatest Support 20 | 20 20 20 Greatest Overweight (x) 6 | . . 6 Average Overweight (x) . | . . . Largest Inventory Capacity 10 | 8 8 10 Average Capacity 6 | 6 6 6 Most Carried 10 | 5 8 10 Average Carried 5 | 1 5 5 Final Capacity 10 | 8 5 10 Final Carried 9 | 2 5 9 Class Distribution -------------------- 60% | Mutant 39% | Scavenger-Mutant Dominant Class ---------------- Mutant | -10/Materials Scavenger-Mutant | -10/Subcaves Resources | -11 -10 -10 ----------- Run | Yrd Mat Sub Matter Collected 722 | 230 114 378 Remotely . | . . . Salvage Created 915 | 94 235 586 Parts 57 | 2 17 38 Haulers Intercepted 1 | . 1 . Recyclers Shooed 1 | . 1 . Parts Field Recycled . | . . . Retrieved Matter . | . . . Parts Self-Destructed 7 | . . 7 Prevented . | . . . Parts Restored . | . . . Kills | -11 -10 -10 ------- Run | Yrd Mat Sub Combat Hostiles Destroyed 20 | . 5 15 Melee 1 | . 1 . Guns 14 | . 4 10 Cannons 4 | . . 4 Classes Destroyed 8 | 1 4 3 Hauler 1 | . 1 . Recycler 2 | 1 1 . Mechanic 1 | . 1 . Turret 1 | . . 1 Swarmer 4 | . 3 1 Grunt 2 | . 2 . Sentry 1 | . . 1 Subdweller 13 | . . 13 Best Kill Streak 3 | 1 3 2 Combat Bots Only 3 | . 3 2 Max Kills in Single Turn 1 | 1 1 1 Gunslinging . | . . . Exploded . | . . . Melee 1 | . 1 . Uniques/NPCs Destroyed . | . . . Combat | -11 -10 -10 -------- Run | Yrd Mat Sub Hostile Shots Fired 135 | . 42 93 Missed 36 | . 8 28 Hits 99 | . 34 65 Projectile 99 | . 34 65 Critical Strikes 3 | . . 3 Damage Taken 1304 | . 278 1026 Core 258 | . 54 204 Absorbed by Shields . | . . . Ignored by Resistances 376 | . 87 289 Core Remaining (%) 100 | 100 . . Volleys Fired 69 | 4 21 44 Largest 2 | 2 2 2 Hottest 110 | 60 88 110 Shots Fired 124 | 8 33 83 Gun 101 | 8 33 60 Cannon 23 | . . 23 Launcher . | . . . Special . | . . . Kinetic 72 | 4 21 47 Thermal 52 | 4 12 36 Explosive . | . . . Electromagnetic . | . . . Robot Hit Streak 21 | 4 15 21 Robot Miss Streak 4 | 1 2 4 Penetration Max . | . . . Secondary Targets 1 | . 1 . Max Gunslinging Chain 1 | . 1 . Shots Hit Robots 103 | 6 29 68 Core Hits 41 | 2 15 24 Critical Kills . | . . . Critical Parts Destroyed 2 | . 1 1 Critical Strikes 2 | . 1 1 Destroy 1 | . 1 . Smash 1 | . . 1 Melee Attacks 14 | . 3 11 Impact 14 | . 3 11 Slashing . | . . . Piercing . | . . . Sneak Attacks . | . . . Combat Hostiles . | . . . Follow-up Attacks . | . . . Damage Inflicted 1992 | 63 465 1464 Guns 1162 | 63 390 709 Cannons 451 | . . 451 Explosions . | . . . Melee 379 | . 75 304 Ramming . | . . . Kinetic 841 | 28 215 598 Thermal 772 | 35 175 562 Explosive . | . . . Electromagnetic . | . . . Impact 379 | . 75 304 Slashing . | . . . Piercing . | . . . Highest Corruption . | . . . Average Corruption . | . . . Corruption Purged . | . . . Corruption Blocked . | . . . Overload Shots . | . . . Overflow Damage 102 | . 33 69 Projectiles 24 | . . 24 Explosions . | . . . Melee 78 | . 33 45 Knockbacks 2 | . 1 1 Impact 2 | . 1 1 Kinetic . | . . . Secondary . | . . . Self-Inflicted Damage . | . . . Shots . | . . . Rammed . | . . . Targets Rammed . | . . . Kicked . | . . . Crushed . | . . . Highest Temperature 252 | 20 252 64 Average Temperature 58 | 13 94 20 Received Heat Transfer 486 | . 135 351 Siege Activations . | . . . Martial Activations . | . . . Shielding Activations . | . . . Robots Disrupted . | . . . Combat Hostiles . | . . . Robots Corrupted 1 | . . 1 Combat Hostiles 1 | . . 1 Parts Fried 1 | . . 1 Impact Corruptions 2 | . 1 1 Robots Melted . | . . . Combat Hostiles . | . . . Parts Melted 3 | . . 3 Heat Transferred 1333 | 75 407 851 Parts Sabotaged . | . . . Parts Stolen . | . . . Parts Stripped . | . . . Power Chain Reactions . | . . . Alert | -11 -10 -10 ------- Run | Yrd Mat Sub Maximum Alert Level . | . . . Low Security (%) 100 | 100 100 . Level 1 . | . . . Level 2 . | . . . Level 3 . | . . . Level 4 . | . . . Level 5 . | . . . High Security . | . . . Max Security . | . . . Peak Influence 77 | 5 77 . Initial . | . . . Average 27 | . 32 . Influence Increases 232 | 5 167 60 Destroy 0b10 Robot/C 160 | . 100 60 Destroy 0b10 Robot/NC 20 | 5 15 . Destroy Leader 22 | . 22 . Lose Combat Pursuer 30 | . 30 . Influence Decreases 232 | 5 140 87 Entered New Map 15 | . . 15 Time Decay 217 | 5 140 72 Squads Dispatched . | . . . Investigation . | . . . Extermination . | . . . Reinforcement . | . . . Assault . | . . . Garrison . | . . . Intercept . | . . . Searches Triggered . | . . . Construction Impeded . | . . . Haulers Reinforced . | . . . Active Scanning Responses . | . . . Cargo Convoy Interrupts . | . . . Stealth | -11 -10 -10 --------- Run | Yrd Mat Sub Distress Signals . | . . . Communications Jammed . | . . . Distress Signals . | . . . Times Spotted 27 | . 8 19 Peak Tracking Total 4 | . 4 3 Tactical Retreats 2 | . 1 1 Traps | -11 -10 -10 ------- Run | Yrd Mat Sub Traps Triggered 1 | . . 1 Indirectly . | . . . Trap Hack Attempts . | . . . Triggered . | . . . Disarmed . | . . . Reprogrammed . | . . . Reused . | . . . Traps Extracted . | . . . Installed . | . . . Triggered . | . . . Machines | -11 -10 -10 ---------- Run | Yrd Mat Sub Machines Disabled 1 | . . 1 Max in Single Turn 1 | . . 1 Machines Repaired . | . . . Machines Dismantled . | . . . Machines Sabotaged . | . . . Overloaded Fab Kills . | . . . Hacking | -11 -10 -10 --------- Run | Yrd Mat Sub Machines Accessed . | . . . Terminals . | . . . Fabricators . | . . . Repair Stations . | . . . Recycling Units . | . . . Scanalyzers . | . . . Garrison Access . | . . . Total Hacks . | . . . Successful . | . . . Failed . | . . . Catastrophic . | . . . Database Lockouts . | . . . Manual . | . . . Terminals . | . . . Fabricators . | . . . Repair Stations . | . . . Recycling Units . | . . . Scanalyzers . | . . . Garrison Access . | . . . Terminal Hacks . | . . . Fabricator Hacks . | . . . Repair Station Hacks . | . . . Recycling Unit Hacks . | . . . Scanalyzer . | . . . Garrison Access Hacks . | . . . Unauthorized Hacks . | . . . Terminals . | . . . Fabricators . | . . . Repair Stations . | . . . Recycling Units . | . . . Scanalyzers . | . . . Garrison Access . | . . . Data Cores Recovered . | . . . Used . | . . . Hacking Detections . | . . . Full Trace Events . | . . . Feedback Events . | . . . Feedback Blocked . | . . . Robot Schematics Acquired . | . . . Robots Built . | . . . Authchips . | . . . Time . | . . . Total Robot Build Rating . | . . . Part Schematics Acquired . | . . . Parts Built . | . . . Authchips . | . . . Time . | . . . Total Part Build Rating . | . . . Part Studies Acquired . | . . . Parts Repaired . | . . . Time . | . . . Parts Recycled . | . . . Recycled Matter . | . . . Retrieved Matter . | . . . Retrieved Components . | . . . Parts Scanalyzed . | . . . Part Schematics Acquired . | . . . Parts Damaged . | . . . Bothacking | -11 -10 -10 ------------ Run | Yrd Mat Sub Used RIF Installer . | . . . Robots Hacked . | . . . Non-combat . | . . . Combat . | . . . Robot Hacks Applied . | . . . Relay Couplers Released . | . . . Fabnet Peak Effective % . | . . . Robots Rewired . | . . . Allies Hacked . | . . . Hacks Repelled . | . . . Allies | -11 -10 -10 -------- Run | Yrd Mat Sub Total Allies . | . . . Largest Group . | . . . Highest-Rated Group . | . . . Highest-Rated Ally . | . . . Total Orders . | . . . Ally Attacks . | . . . Total Damage . | . . . Kills . | . . . Allies Corrupted . | . . . Allies Melted . | . . . Intel | -11 -10 -10 ------- Run | Yrd Mat Sub Active Infowar (turns) 1657 | . 361 1296 Optics 111 | . 111 . Sensors 1515 | . 250 1265 Machine Analysis 31 | . . 31 Robot Analysis Total . | . . . Derelict Logs Recovered 2 | . . 2 Drone Launches . | . . . Drone Recoveries . | . . . Exploration | -11 -10 -10 ------------- Run | Yrd Mat Sub Turns Passed 2077 | 69 391 1617 Spaces Moved 1515 | 46 246 1223 Core 32 | 19 . 13 Treads 14 | . . 14 Legs 368 | 27 246 95 Wheels 1101 | . . 1101 Hover . | . . . Flight . | . . . Fastest Speed 50 | 50 120 95 Average Speed 115 | 91 120 115 Slowest Speed 350 | 120 120 350 Overloaded Moves . | . . . Propulsion Burnouts . | . . . Robots Hopped . | . . . Potential Cave-ins . | . . . Cave-ins Triggered . | . . . Exploration Rate (%) 39 | 3 36 79 Regions Visited 2 Branch Regions 1 Pre-discovered Areas . | . . . Known Exits Taken 1 | . 1 . Unknown Exits Taken 1 | 1 . . Scrap Searched 4 | . . 4 Spaces Dug . | . . . Terrain Destroyed . | . . . Melee . | . . . Projectile . | . . . AOE . | . . . Terrain Rammed . | . . . Walls Destroyed . | . . . Machines Disabled . | . . . Actions | -11 -10 -10 --------- Run | Yrd Mat Sub Total 1713 | 65 309 1339 Wait 19 | . . 19 Move 1513 | 45 245 1223 Hop . | . . . Pick Up 33 | 8 14 11 Fast Attach 4 | 1 . 3 Attach 9 | 5 1 3 Detach . | . . . Swap 26 | 1 12 13 Drop 26 | 1 13 12 Fire 69 | 4 21 44 Melee 14 | . 3 11 Ram . | . . . Kick . | . . . Crush . | . . . Escape Stasis . | . . . Rewire . | . . . Trap . | . . . Miscellaneous . | . . . Route ------- -11/Scrapyard -10/Materials (discovered 2 exits: [*Min] / *Sub) -10/Subcaves (discovered 3 exits: *Mat x2 / [*Rec]) History --------- Turn | Location | Event 2 | -11/Scrapyard | Met Revision 17 24 | -11/Scrapyard | Discovered new exit (range 14) 70 | -11/Scrapyard | Entered Materials 219 | -10/Materials | Discovered new exit (range 7) 333 | -10/Materials | Build established: Mutant 450 | -10/Materials | Discovered new exit (range 9) 460 | -10/Materials | Identified exit to Subcaves 461 | -10/Materials | Entered Subcaves 944 | -10/Subcaves | Build established: Scavenger-Mutant 1279 | -10/Subcaves | Core integrity fell below 50% 1324 | -10/Subcaves | Discovered new exit (range 7) 1333 | -10/Subcaves | Identified exit to Materials 1598 | -10/Subcaves | Build established: Mutant 1660 | -10/Subcaves | Learned 2 Materials zone layouts 1846 | -10/Subcaves | Discovered new exit (range 16) 1894 | -10/Subcaves | A swath of the cavern ceiling suddenly collapsed 1990 | -10/Subcaves | Learned Materials emergency access door positions 2000 | -10/Subcaves | Discovered exit to Materials (range 10) 2041 | -10/Subcaves | A Subdweller sparked back to life 2041 | -10/Subcaves | A Subdweller sparked back to life 2041 | -10/Subcaves | A Subdweller sparked back to life 2066 | -10/Subcaves | Core integrity fell below 20% 2078 | -10/Subcaves | Destroyed by F3-EQ0(R) with Subdweller Laser Last Messages --------------- 02031_ Dropped Sub. Beam Cannon. 02031_ Acquired Scrap Shield Fragment. 02041_ F3-EQ0(R) creaks and sparks as it begins to move. 02041_ WG-7NS(R) creaks and sparks as it begins to move. 02041_ VO-A42(R) creaks and sparks as it begins to move. 02043_ Imp. Heat Sink destroyed. 02052_ F3-EQ0(R) knocked back. 02062_ Battle Rifle destroyed. 02068_ WG-7NS(R) suffers critical hit (Smash). 02068_ Destroyed Sub. Power Source. 02068_ WG-7NS(R) system corrupted by crushing effect. 02069_ WG-7NS(R) system terminally corrupted. 02069_ Sub. Monowheel fried. 02071_ UZ-HTE(O) collects matter. 02072_ F3-EQ0(R) affixes Scrap Shield Fragment to Scrap Shield. Map ----- +----------------------------------------------------+ | | | | | ????????????????????????????????????????????????? | | ????????????????????????????????????????????????? | | ????????????????????????????????????????????????? | | ????????????????????????????????????????????????? | | ????????????????????????????????????????????????? | | ????????????????????????????????????????????????? | | ????????????????????????????????????????????????? | | ????????????????????????????????????????????????? | | ????????????????????????????????????????????????? | | ????????????????????????????????????????????????? | | ????????????????????????????????????????????????? | | ????????????????????????????????????????????????? | | ????????????????????????????????????????????????? | | ????????????????????????????????????????????????? | | ?????????????????????????????????????????????#### | | ??????????????????????????????####???????????# | | ?????????????????????????????## ##?######???# | | ??????????????????????????#### ### ##### [ | | ?????????????????????????## / | | ????????????????????????## # | | ????????????????????????# < ### ## | | ???????????????????????## #?#### < ### # | | ??????????????????????## R#????### ##?#### | | ??????????????????????#R@ & #??????#####?????? | | ??????????????????????# O ###????????????????? | | ?????????????????????## ## #??????????????????? | | ?????????????????????# ## [#??????????????????? | | ????????????????????# ### #??????????????????? | | ???????????????????# = ##? #??????????????????? | | ???????????????????#####?? #??????????????????? | | ????????????????????????? ##??????????????????? | | ????????????????????????? ????????????????????? | | ???????????????????????? ????????????????????? | | ???????????????????????? ????????????????????? | | ?????????????????????????## ????????????????????? | | ???????????????????????????#????????????????????? | | ????????????????????????????????????????????????? | | ????????????????????????????????????????????????? | | ????????????????????????????????????????????????? | | ????????????????????????????????????????????????? | | ????????????????????????????????????????????????? | | ????????????????????????????????????????????????? | | ????????????????????????????????????????????????? | | ????????????????????????????????????????????????? | | ????????????????????????????????????????????????? | | ????????????????????????????????????????????????? | | ???????????????????????????????????????????????## | | ?????????????????????????????????????????????### | +----------------------------------------------------+ Best States ------------- Heat Dissipation 39 Energy Generation 15 Energy Capacity 265 Matter Stores 300 Matter Capacity 300 Sight Range 18 Robot Scan Range 14 Terrain Scan Density 10 Resistance: KI 20 Resistance: TH 20 Resistance: EX 20 Resistance: EM 20 Resistance: I 20 Resistance: S 20 Resistance: P 20 Evasion (%) 55 Recoil Reduction 1 Offensive Hacking 10 Item Schematics ----------------- None Robot Schematics ------------------ None Fabricated ------------ Nothing Repaired ---------- Nothing Studied --------- None Alien Tech Used ----------------- None Achievements -------------- None Challenges ------------ None Game ------ Seed SignalMeleeProtomatter Manual? 0 Play Time 00:13:20 Cumulative 285.9 hours Start 2026.06.27 @ 11:45:04 End 2026.06.29 @ 09:03:45 Sessions 3 Manual Loads 0 Difficulty Adventurer Special Mode None Game No. 335 Rogue 0 Adventurer 335 Explorer 0 Win Type - Total 0 Types 0/0/0/0/0/0/0/0/0/0 Lore% 74 Gallery% 59 Achievement% 40 Wizard Run 0 Options --------- Layout 2 ASCII 0 Keyboard 0 Movement Mouse Keybinds 0 Fullscreen 2 Font 48/Smallcaps Map View 50x44 Zoom Use 0% Tactical HUD 1 Map Filters NONE Filters NONE Steam 1 RUN: c4799d48-a39a-44f4-94d6-723fda103934